[Event "January 9 Early 2024"]
[Site "https://www.chess.com"]
[Date "2024.01.11"]
[Round "11"]
[White "Zhu, Hengyi"]
[Black "Bharath Subramaniyam H"]
[Result "0-1"]
[Board "146"]
[TimeControl "180+1"]
[WhiteFideId "8611211"]
[BlackFideId "46634827"]
[WhiteElo "2822"]
[BlackElo "2969"]
[WhiteTeam "CHN"]
[BlackTeam "IND"]
[WhiteClock "0:00:01"]
[BlackClock "0:00:15"]

1. e4 {[%clk 0:02:48]}  c6 {[%clk 0:02:59]} 2. Nf3 {[%clk 0:02:48]}  d5 {[%clk 0:03:00]} 3. d3 {[%clk 0:02:48]}  g6 {[%clk 0:03:00]} 4. e5 {[%clk 0:02:48]}  c5 {[%clk 0:02:58]} 5. g3 {[%clk 0:02:44]}  Nc6 {[%clk 0:02:58]} 6. Bg2 {[%clk 0:02:45]}  Bg7 {[%clk 0:02:58]} 7. Bf4 {[%clk 0:02:44]}  h6 {[%clk 0:02:54]} 8. h4 {[%clk 0:02:44]}  Bg4 {[%clk 0:02:51]} 9. c3 {[%clk 0:02:37]}  Bxe5 {[%clk 0:02:40]} 10. Bxe5 {[%clk 0:02:13]}  Nxe5 {[%clk 0:02:40]} 11. Qa4+ {[%clk 0:02:13]}  Bd7 {[%clk 0:02:32]} 12. Qc2 {[%clk 0:02:13]}  Nxf3+ {[%clk 0:02:30]} 13. Bxf3 {[%clk 0:02:14]}  Nf6 {[%clk 0:02:31]} 14. O-O {[%clk 0:02:10]}  O-O {[%clk 0:02:31]} 15. Re1 {[%clk 0:02:09]}  Re8 {[%clk 0:02:28]} 16. Nd2 {[%clk 0:02:09]}  Bc6 {[%clk 0:02:23]} 17. d4 {[%clk 0:02:07]}  cxd4 {[%clk 0:02:21]} 18. cxd4 {[%clk 0:02:07]}  Rc8 {[%clk 0:02:22]} 19. Qd3 {[%clk 0:02:04]}  Qb6 {[%clk 0:02:22]} 20. Nb3 {[%clk 0:02:02]}  Bb5 {[%clk 0:02:14]} 21. Qd2 {[%clk 0:02:01]}  Kg7 {[%clk 0:02:13]} 22. Nc5 {[%clk 0:02:00]}  Nd7 {[%clk 0:02:09]} 23. a4 {[%clk 0:01:57]}  Bc6 {[%clk 0:02:02]} 24. b4 {[%clk 0:01:57]}  Nf6 {[%clk 0:01:56]} 25. Rac1 {[%clk 0:01:47]}  a6 {[%clk 0:01:52]} 26. Kg2 {[%clk 0:01:39]}  e6 {[%clk 0:01:50]} 27. Rb1 {[%clk 0:01:32]}  Ne4 {[%clk 0:01:37]} 28. Qe3 {[%clk 0:01:31]}  Red8 {[%clk 0:01:14]} 29. b5 {[%clk 0:01:28]}  axb5 {[%clk 0:01:14]} 30. axb5 {[%clk 0:01:29]}  Be8 {[%clk 0:01:14]} 31. Nxe4 {[%clk 0:01:23]}  dxe4 {[%clk 0:01:14]} 32. Qxe4 {[%clk 0:01:24]}  Rd5 {[%clk 0:01:04]} 33. h5 {[%clk 0:01:13]}  g5 {[%clk 0:01:01]} 34. Qe3 {[%clk 0:00:46]}  Rxb5 {[%clk 0:00:51]} 35. Rxb5 {[%clk 0:00:43]}  Qxb5 {[%clk 0:00:51]} 36. d5 {[%clk 0:00:42]}  Bd7 {[%clk 0:00:40]} 37. Qe5+ {[%clk 0:00:40]}  Kg8 {[%clk 0:00:35]} 38. Qf6 {[%clk 0:00:39]}  g4 {[%clk 0:00:30]} 39. Be4 {[%clk 0:00:28]}  exd5 {[%clk 0:00:29]} 40. Bb1 {[%clk 0:00:27]}  d4 {[%clk 0:00:25]} 41. Qxh6 {[%clk 0:00:25]}  Qd5+ {[%clk 0:00:20]} 42. Kh2 {[%clk 0:00:25]}  d3 {[%clk 0:00:20]} 43. Rd1 {[%clk 0:00:17]}  Bc6 {[%clk 0:00:20]} 44. Rg1 {[%clk 0:00:15]}  Re8 {[%clk 0:00:21]} 45. Ba2 {[%clk 0:00:02]}  Qf5 {[%clk 0:00:16]} 46. Rf1 {[%clk 0:00:02]}  Re5 {[%clk 0:00:15]} 47. Kg1 {[%clk 0:00:01]}  Qxh5 {[%clk 0:00:15]} 0-1

[Event "January 9 Early 2024"]
[Site "https://www.chess.com"]
[Date "2024.01.11"]
[Round "11"]
[White "Carow, Johannes"]
[Black "Olenik Campa, Rudi"]
[Result "0-1"]
[Board "148"]
[TimeControl "180+1"]
[WhiteFideId "24692050"]
[BlackFideId "14633264"]
[WhiteElo "2703"]
[BlackElo "2585"]
[WhiteTeam "GER"]
[BlackTeam "SLO"]
[WhiteClock "0:00:05"]
[BlackClock "0:00:12"]

1. d4 {[%clk 0:02:58]}  Nf6 {[%clk 0:02:59]} 2. Nf3 {[%clk 0:02:58]}  g6 {[%clk 0:02:59]} 3. g3 {[%clk 0:02:58]}  Bg7 {[%clk 0:02:59]} 4. Bg2 {[%clk 0:02:59]}  O-O {[%clk 0:02:59]} 5. O-O {[%clk 0:02:59]}  d6 {[%clk 0:03:00]} 6. c4 {[%clk 0:02:57]}  Nc6 {[%clk 0:03:00]} 7. Nc3 {[%clk 0:02:57]}  e5 {[%clk 0:03:01]} 8. dxe5 {[%clk 0:02:56]}  dxe5 {[%clk 0:03:02]} 9. Bg5 {[%clk 0:02:53]}  Be6 {[%clk 0:03:02]} 10. Qa4 {[%clk 0:02:48]}  Qc8 {[%clk 0:03:02]} 11. Rfd1 {[%clk 0:02:38]}  Nd7 {[%clk 0:03:02]} 12. Nd5 {[%clk 0:02:33]}  Re8 {[%clk 0:02:52]} 13. Rac1 {[%clk 0:02:27]}  h6 {[%clk 0:02:52]} 14. Be3 {[%clk 0:02:25]}  f5 {[%clk 0:02:51]} 15. b4 {[%clk 0:02:17]}  a6 {[%clk 0:02:43]} 16. Qb3 {[%clk 0:02:04]}  e4 {[%clk 0:02:35]} 17. Nd4 {[%clk 0:01:56]}  Nxd4 {[%clk 0:02:35]} 18. Bxd4 {[%clk 0:01:55]}  Ne5 {[%clk 0:02:34]} 19. Qc3 {[%clk 0:01:46]}  Bf7 {[%clk 0:02:26]} 20. f4 {[%clk 0:01:39]}  exf3 {[%clk 0:02:14]} 21. exf3 {[%clk 0:01:40]}  Bxd5 {[%clk 0:01:03]} 22. cxd5 {[%clk 0:01:39]}  Qd7 {[%clk 0:01:02]} 23. f4 {[%clk 0:01:14]}  Ng4 {[%clk 0:01:02]} 24. Bxg7 {[%clk 0:01:14]}  Qxg7 {[%clk 0:01:02]} 25. Qxg7+ {[%clk 0:01:14]}  Kxg7 {[%clk 0:01:01]} 26. Rxc7+ {[%clk 0:01:14]}  Kf6 {[%clk 0:01:01]} 27. d6 {[%clk 0:01:15]}  Rad8 {[%clk 0:00:59]} 28. d7 {[%clk 0:00:53]}  Re6 {[%clk 0:00:58]} 29. Rxb7 {[%clk 0:00:31]}  Ne3 {[%clk 0:00:56]} 30. Re1 {[%clk 0:00:27]}  Nxg2 {[%clk 0:00:54]} 31. Rxe6+ {[%clk 0:00:20]}  Kxe6 {[%clk 0:00:55]} 32. Rb6+ {[%clk 0:00:12]}  Kf7 {[%clk 0:00:38]} 33. Kxg2 {[%clk 0:00:13]}  Rxd7 {[%clk 0:00:38]} 34. Rxa6 {[%clk 0:00:13]}  Rd2+ {[%clk 0:00:38]} 35. Kg1 {[%clk 0:00:12]}  Rd1+ {[%clk 0:00:37]} 36. Kg2 {[%clk 0:00:12]}  Rd2+ {[%clk 0:00:38]} 37. Kf3 {[%clk 0:00:12]}  Rxh2 {[%clk 0:00:38]} 38. b5 {[%clk 0:00:12]}  Rb2 {[%clk 0:00:38]} 39. a4 {[%clk 0:00:12]}  g5 {[%clk 0:00:37]} 40. fxg5 {[%clk 0:00:12]}  hxg5 {[%clk 0:00:38]} 41. b6 {[%clk 0:00:11]}  Rb3+ {[%clk 0:00:36]} 42. Kg2 {[%clk 0:00:10]}  Ke7 {[%clk 0:00:26]} 43. a5 {[%clk 0:00:09]}  Kd7 {[%clk 0:00:26]} 44. Ra7+ {[%clk 0:00:09]}  Kc8 {[%clk 0:00:26]} 45. Rc7+ {[%clk 0:00:09]}  Kb8 {[%clk 0:00:25]} 46. Rc5 {[%clk 0:00:09]}  f4 {[%clk 0:00:14]} 47. Rxg5 {[%clk 0:00:09]}  fxg3 {[%clk 0:00:13]} 48. Rg8+ {[%clk 0:00:05]}  Kb7 {[%clk 0:00:12]} 49. Rg7+ {[%clk 0:00:05]}  Kb8 {[%clk 0:00:12]} 0-1

[Event "January 9 Early 2024"]
[Site "https://www.chess.com"]
[Date "2024.01.11"]
[Round "11"]
[White "Delorme, Axel"]
[Black "Rodriguez Santiago, Jaime"]
[Result "1-0"]
[Board "150"]
[TimeControl "180+1"]
[WhiteFideId "632023"]
[BlackFideId "3100898"]
[WhiteElo "2518"]
[BlackElo "2310"]
[WhiteTeam "FRA"]
[BlackTeam "PUR"]
[WhiteClock "0:00:04"]
[BlackClock "0:00:03"]

1. e4 {[%clk 0:03:00]}  c6 {[%clk 0:02:59]} 2. d4 {[%clk 0:03:00]}  d5 {[%clk 0:02:59]} 3. Nc3 {[%clk 0:03:01]}  dxe4 {[%clk 0:02:59]} 4. Nxe4 {[%clk 0:03:02]}  Nf6 {[%clk 0:03:00]} 5. Nxf6+ {[%clk 0:03:02]}  exf6 {[%clk 0:03:01]} 6. Bc4 {[%clk 0:03:02]}  Bd6 {[%clk 0:03:00]} 7. Qe2+ {[%clk 0:03:03]}  Be7 {[%clk 0:02:59]} 8. Nf3 {[%clk 0:03:02]}  O-O {[%clk 0:02:59]} 9. O-O {[%clk 0:03:03]}  Bd6 {[%clk 0:02:58]} 10. Re1 {[%clk 0:03:02]}  Nd7 {[%clk 0:02:57]} 11. h3 {[%clk 0:02:57]}  Nb6 {[%clk 0:02:56]} 12. Bd3 {[%clk 0:02:56]}  Nd5 {[%clk 0:02:49]} 13. c3 {[%clk 0:02:43]}  Bd7 {[%clk 0:02:44]} 14. Qe4 {[%clk 0:02:34]}  g6 {[%clk 0:02:37]} 15. Bh6 {[%clk 0:02:33]}  Re8 {[%clk 0:02:35]} 16. Qh4 {[%clk 0:02:34]}  Be6 {[%clk 0:02:05]} 17. a3 {[%clk 0:02:18]}  b5 {[%clk 0:01:54]} 18. Nd2 {[%clk 0:02:09]}  Bf8 {[%clk 0:01:49]} 19. Bxf8 {[%clk 0:02:07]}  Rxf8 {[%clk 0:01:49]} 20. Ne4 {[%clk 0:02:03]}  Kg7 {[%clk 0:01:48]} 21. Nc5 {[%clk 0:02:01]}  Qd6 {[%clk 0:01:39]} 22. a4 {[%clk 0:01:32]}  a6 {[%clk 0:01:37]} 23. a5 {[%clk 0:01:32]}  Nf4 {[%clk 0:01:14]} 24. Qg3 {[%clk 0:01:22]}  Qb8 {[%clk 0:00:56]} 25. Be4 {[%clk 0:01:10]}  Bd5 {[%clk 0:00:54]} 26. Nd7 {[%clk 0:01:00]}  Qd6 {[%clk 0:00:45]} 27. Nxf8 {[%clk 0:01:00]}  Rxf8 {[%clk 0:00:46]} 28. Bxd5 {[%clk 0:00:59]}  cxd5 {[%clk 0:00:45]} 29. Re3 {[%clk 0:00:57]}  g5 {[%clk 0:00:35]} 30. Rae1 {[%clk 0:00:57]}  h5 {[%clk 0:00:35]} 31. h4 {[%clk 0:00:56]}  Kg6 {[%clk 0:00:32]} 32. Re8 {[%clk 0:00:26]}  Rxe8 {[%clk 0:00:27]} 33. Rxe8 {[%clk 0:00:27]}  Qc7 {[%clk 0:00:26]} 34. Qf3 {[%clk 0:00:20]}  Qxa5 {[%clk 0:00:24]} 35. hxg5 {[%clk 0:00:17]}  fxg5 {[%clk 0:00:24]} 36. Rg8+ {[%clk 0:00:17]}  Kh6 {[%clk 0:00:22]} 37. g3 {[%clk 0:00:16]}  Kh7 {[%clk 0:00:09]} 38. Rc8 {[%clk 0:00:07]}  Nh3+ {[%clk 0:00:06]} 39. Kh2 {[%clk 0:00:07]}  Kg7 {[%clk 0:00:07]} 40. Qf5 {[%clk 0:00:04]}  g4 {[%clk 0:00:07]} 41. Qxh5 {[%clk 0:00:03]}  Qb6 {[%clk 0:00:04]} 42. Qxg4+ {[%clk 0:00:04]}  Kf6 {[%clk 0:00:03]} 43. Qxh3 {[%clk 0:00:03]}  a5 {[%clk 0:00:03]} 44. Qh4+ {[%clk 0:00:03]}  Ke6 {[%clk 0:00:03]} 45. Re8+ {[%clk 0:00:04]}  Kd7 {[%clk 0:00:03]} 46. Qe7+ {[%clk 0:00:04]}  Kc6 {[%clk 0:00:03]} 47. Rc8+ {[%clk 0:00:04]} 1-0

[Event "January 9 Early 2024"]
[Site "https://www.chess.com"]
[Date "2024.01.11"]
[Round "11"]
[White "Barbot, Pierre"]
[Black "Mohammadi, Melika"]
[Result "0-1"]
[Board "153"]
[TimeControl "180+1"]
[WhiteFideId "663727"]
[BlackFideId "42529271"]
[WhiteElo "2298"]
[BlackElo "2444"]
[WhiteTeam "FRA"]
[BlackTeam "IRI"]
[WhiteClock "0:00:03"]
[BlackClock "0:00:08"]

1. d4 {[%clk 0:03:00]}  d5 {[%clk 0:02:59]} 2. Nf3 {[%clk 0:03:01]}  Nf6 {[%clk 0:02:59]} 3. Bf4 {[%clk 0:03:02]}  c5 {[%clk 0:02:59]} 4. e3 {[%clk 0:03:01]}  Nc6 {[%clk 0:02:59]} 5. Nbd2 {[%clk 0:03:02]}  Qb6 {[%clk 0:02:57]} 6. dxc5 {[%clk 0:03:02]}  Qxc5 {[%clk 0:02:54]} 7. Nb3 {[%clk 0:02:45]}  Qb6 {[%clk 0:02:54]} 8. c3 {[%clk 0:02:41]}  e6 {[%clk 0:02:50]} 9. Bd3 {[%clk 0:02:41]}  Qd8 {[%clk 0:02:43]} 10. O-O {[%clk 0:02:25]}  Bd6 {[%clk 0:02:43]} 11. Bxd6 {[%clk 0:02:03]}  Qxd6 {[%clk 0:02:44]} 12. a4 {[%clk 0:02:04]}  O-O {[%clk 0:02:39]} 13. a5 {[%clk 0:02:04]}  a6 {[%clk 0:02:39]} 14. Nfd4 {[%clk 0:01:54]}  e5 {[%clk 0:02:25]} 15. Nf5 {[%clk 0:01:49]}  Qc7 {[%clk 0:02:21]} 16. Bc2 {[%clk 0:01:40]}  Be6 {[%clk 0:02:10]} 17. h3 {[%clk 0:01:29]}  Rad8 {[%clk 0:02:09]} 18. Nc5 {[%clk 0:01:22]}  Nxa5 {[%clk 0:01:57]} 19. b4 {[%clk 0:01:14]}  Nc4 {[%clk 0:01:53]} 20. Nxe6 {[%clk 0:01:06]}  fxe6 {[%clk 0:01:54]} 21. Ng3 {[%clk 0:01:07]}  Nd6 {[%clk 0:01:53]} 22. Qd3 {[%clk 0:00:58]}  e4 {[%clk 0:01:49]} 23. Qd2 {[%clk 0:00:51]}  Rc8 {[%clk 0:01:49]} 24. Ne2 {[%clk 0:00:44]}  Nb5 {[%clk 0:01:45]} 25. Rfc1 {[%clk 0:00:29]}  Nxc3 {[%clk 0:01:41]} 26. Nd4 {[%clk 0:00:29]}  e5 {[%clk 0:01:18]} 27. Ne6 {[%clk 0:00:28]}  Qb6 {[%clk 0:00:41]} 28. Nxf8 {[%clk 0:00:27]}  Kxf8 {[%clk 0:00:42]} 29. Bd1 {[%clk 0:00:16]}  d4 {[%clk 0:00:41]} 30. exd4 {[%clk 0:00:15]}  exd4 {[%clk 0:00:42]} 31. Bg4 {[%clk 0:00:15]}  Nxg4 {[%clk 0:00:36]} 32. hxg4 {[%clk 0:00:16]}  Kg8 {[%clk 0:00:34]} 33. Rc2 {[%clk 0:00:08]}  Rf8 {[%clk 0:00:26]} 34. Rb2 {[%clk 0:00:03]}  Qf6 {[%clk 0:00:16]} 35. b5 {[%clk 0:00:03]}  Nxb5 {[%clk 0:00:15]} 36. Rb4 {[%clk 0:00:03]}  d3 {[%clk 0:00:14]} 37. Qe3 {[%clk 0:00:02]}  Qxa1+ {[%clk 0:00:14]} 38. Kh2 {[%clk 0:00:02]}  Qe5+ {[%clk 0:00:14]} 39. g3 {[%clk 0:00:02]}  Qd6 {[%clk 0:00:13]} 40. Rxe4 {[%clk 0:00:02]}  d2 {[%clk 0:00:12]} 41. Re6 {[%clk 0:00:03]}  d1=Q {[%clk 0:00:12]} 42. Rxd6 {[%clk 0:00:03]}  Qxd6 {[%clk 0:00:13]} 43. Qb3+ {[%clk 0:00:04]}  Kh8 {[%clk 0:00:12]} 44. g5 {[%clk 0:00:05]}  Qd4 {[%clk 0:00:11]} 45. g6 {[%clk 0:00:05]}  Qxf2+ {[%clk 0:00:11]} 46. Kh3 {[%clk 0:00:05]}  Qf5+ {[%clk 0:00:11]} 47. g4 {[%clk 0:00:05]}  Qxg6 {[%clk 0:00:12]} 48. Qd5 {[%clk 0:00:05]}  Qf7 {[%clk 0:00:12]} 49. Qe5 {[%clk 0:00:04]}  Qf3+ {[%clk 0:00:12]} 50. Kh4 {[%clk 0:00:04]}  Qh1+ {[%clk 0:00:09]} 51. Kg5 {[%clk 0:00:03]}  Qh6# {[%clk 0:00:08]} 0-1

[Event "January 9 Early 2024"]
[Site "https://www.chess.com"]
[Date "2024.01.11"]
[Round "11"]
[White "Sasvatha A"]
[Black "Burmakin, Evgeniy"]
[Result "1/2-1/2"]
[Board "154"]
[TimeControl "180+1"]
[WhiteFideId "45010862"]
[BlackFideId "4163729"]
[WhiteElo "2194"]
[BlackElo "2392"]
[WhiteTeam "IND"]
[BlackTeam "RUS"]
[WhiteClock "0:00:58"]
[BlackClock "0:00:13"]

1. e4 {[%clk 0:02:59]}  c5 {[%clk 0:02:58]} 2. Nf3 {[%clk 0:02:57]}  d6 {[%clk 0:02:58]} 3. d4 {[%clk 0:02:57]}  cxd4 {[%clk 0:02:59]} 4. Nxd4 {[%clk 0:02:58]}  Nf6 {[%clk 0:02:59]} 5. f3 {[%clk 0:02:53]}  e5 {[%clk 0:02:45]} 6. Nb3 {[%clk 0:02:53]}  d5 {[%clk 0:02:41]} 7. exd5 {[%clk 0:02:49]}  Qxd5 {[%clk 0:02:39]} 8. Qxd5 {[%clk 0:02:48]}  Nxd5 {[%clk 0:02:40]} 9. c3 {[%clk 0:02:48]}  Nc6 {[%clk 0:02:38]} 10. a3 {[%clk 0:02:44]}  Be6 {[%clk 0:02:36]} 11. c4 {[%clk 0:02:43]}  Nb6 {[%clk 0:02:25]} 12. N3d2 {[%clk 0:02:43]}  Nd4 {[%clk 0:02:22]} 13. Bd3 {[%clk 0:02:33]}  O-O-O {[%clk 0:02:01]} 14. Nc3 {[%clk 0:02:27]}  Nb3 {[%clk 0:01:49]} 15. Nxb3 {[%clk 0:02:26]}  Rxd3 {[%clk 0:01:48]} 16. c5 {[%clk 0:02:02]}  Nd7 {[%clk 0:01:26]} 17. Nd2 {[%clk 0:01:57]}  Bxc5 {[%clk 0:01:11]} 18. Nce4 {[%clk 0:01:53]}  Bb6 {[%clk 0:00:59]} 19. Nb1 {[%clk 0:01:43]}  Rd8 {[%clk 0:00:54]} 20. Nbc3 {[%clk 0:01:42]}  f5 {[%clk 0:00:47]} 21. Nf2 {[%clk 0:01:41]}  Rd6 {[%clk 0:00:34]} 22. Bg5 {[%clk 0:01:40]}  Nf6 {[%clk 0:00:33]} 23. Bxf6 {[%clk 0:01:39]}  gxf6 {[%clk 0:00:33]} 24. Rd1 {[%clk 0:01:38]}  Bc4 {[%clk 0:00:24]} 25. Rxd6 {[%clk 0:01:35]}  Rxd6 {[%clk 0:00:25]} 26. Nfd1 {[%clk 0:01:32]}  a6 {[%clk 0:00:17]} 27. h4 {[%clk 0:01:31]}  h5 {[%clk 0:00:17]} 28. g4 {[%clk 0:01:27]}  fxg4 {[%clk 0:00:12]} 29. fxg4 {[%clk 0:01:27]}  hxg4 {[%clk 0:00:12]} 30. h5 {[%clk 0:01:27]}  Bg8 {[%clk 0:00:11]} 31. h6 {[%clk 0:01:27]}  Bh7 {[%clk 0:00:11]} 32. Ke2 {[%clk 0:01:20]}  f5 {[%clk 0:00:10]} 33. Ne3 {[%clk 0:01:16]}  Bxe3 {[%clk 0:00:08]} 34. Kxe3 {[%clk 0:01:16]}  f4+ {[%clk 0:00:09]} 35. Ke2 {[%clk 0:01:13]}  e4 {[%clk 0:00:08]} 36. Rh4 {[%clk 0:01:11]}  f3+ {[%clk 0:00:07]} 37. Ke3 {[%clk 0:01:09]}  g3 {[%clk 0:00:07]} 38. Nxe4 {[%clk 0:01:07]}  Bxe4 {[%clk 0:00:06]} 39. Rxe4 {[%clk 0:01:08]}  g2 {[%clk 0:00:05]} 40. Rg4 {[%clk 0:01:07]}  Rxh6 {[%clk 0:00:04]} 41. Kxf3 {[%clk 0:01:06]}  Rf6+ {[%clk 0:00:02]} 42. Kxg2 {[%clk 0:01:05]}  Kc7 {[%clk 0:00:02]} 43. Rc4+ {[%clk 0:01:05]}  Kb6 {[%clk 0:00:03]} 44. Rg4 {[%clk 0:01:04]}  Kb5 {[%clk 0:00:02]} 45. Kg3 {[%clk 0:01:02]}  b6 {[%clk 0:00:02]} 46. b3 {[%clk 0:01:01]}  a5 {[%clk 0:00:03]} 47. Rg5+ {[%clk 0:01:01]}  Kc6 {[%clk 0:00:02]} 48. Rg4 {[%clk 0:01:00]}  Rd6 {[%clk 0:00:02]} 49. Rf4 {[%clk 0:00:59]}  Rd3+ {[%clk 0:00:03]} 50. Rf3 {[%clk 0:00:59]}  Rxf3+ {[%clk 0:00:02]} 51. Kxf3 {[%clk 0:01:00]}  Kc5 {[%clk 0:00:03]} 52. Ke3 {[%clk 0:01:00]}  a4 {[%clk 0:00:03]} 53. bxa4 {[%clk 0:00:58]}  Kc4 {[%clk 0:00:04]} 54. a5 {[%clk 0:00:53]}  bxa5 {[%clk 0:00:03]} 55. Kd2 {[%clk 0:00:53]}  Kb3 {[%clk 0:00:04]} 56. Kc1 {[%clk 0:00:53]}  a4 {[%clk 0:00:04]} 57. Kb1 {[%clk 0:00:53]}  Kxa3 {[%clk 0:00:05]} 58. Ka1 {[%clk 0:00:54]}  Kb3 {[%clk 0:00:06]} 59. Kb1 {[%clk 0:00:54]}  Ka3 {[%clk 0:00:07]} 60. Ka1 {[%clk 0:00:55]}  Kb3 {[%clk 0:00:08]} 61. Kb1 {[%clk 0:00:55]}  a3 {[%clk 0:00:09]} 62. Ka1 {[%clk 0:00:56]}  Kb4 {[%clk 0:00:10]} 63. Kb1 {[%clk 0:00:57]}  Ka4 {[%clk 0:00:10]} 64. Ka1 {[%clk 0:00:57]}  Kb3 {[%clk 0:00:11]} 65. Kb1 {[%clk 0:00:58]}  a2+ {[%clk 0:00:12]} 66. Ka1 {[%clk 0:00:58]}  Kc2 {[%clk 0:00:13]} 67. Kxa2 {[%clk 0:00:58]} 1/2-1/2

[Event "January 9 Early 2024"]
[Site "https://www.chess.com"]
[Date "2024.01.11"]
[Round "11"]
[White "Limontaite, Simona"]
[Black "Kanyamarala, Trisha"]
[Result "0-1"]
[Board "155"]
[TimeControl "180+1"]
[WhiteFideId "12802506"]
[BlackFideId "45004722"]
[WhiteElo "2328"]
[BlackElo "2510"]
[WhiteTeam "LTU"]
[BlackTeam "IRL"]
[WhiteClock "0:00:02"]
[BlackClock "0:00:06"]

1. d4 {[%clk 0:02:59]}  Nf6 {[%clk 0:02:56]} 2. c4 {[%clk 0:02:59]}  e6 {[%clk 0:02:56]} 3. Nc3 {[%clk 0:02:58]}  Bb4 {[%clk 0:02:55]} 4. Qc2 {[%clk 0:02:58]}  Bxc3+ {[%clk 0:02:52]} 5. Qxc3 {[%clk 0:02:58]}  d5 {[%clk 0:02:52]} 6. Nf3 {[%clk 0:02:57]}  h6 {[%clk 0:02:51]} 7. e3 {[%clk 0:02:57]}  O-O {[%clk 0:02:51]} 8. Bd3 {[%clk 0:02:57]}  c5 {[%clk 0:02:51]} 9. cxd5 {[%clk 0:02:57]}  cxd4 {[%clk 0:02:46]} 10. exd4 {[%clk 0:02:55]}  Nxd5 {[%clk 0:02:43]} 11. Qd2 {[%clk 0:02:54]}  Nc6 {[%clk 0:02:39]} 12. O-O {[%clk 0:02:53]}  b6 {[%clk 0:02:28]} 13. Rd1 {[%clk 0:02:52]}  Bb7 {[%clk 0:02:28]} 14. Qe2 {[%clk 0:02:52]}  Nce7 {[%clk 0:02:23]} 15. Ne5 {[%clk 0:02:41]}  Nf6 {[%clk 0:02:18]} 16. Bc2 {[%clk 0:02:14]}  Qd5 {[%clk 0:02:06]} 17. f3 {[%clk 0:02:13]}  Rfd8 {[%clk 0:01:56]} 18. Be3 {[%clk 0:02:02]}  Nc6 {[%clk 0:01:34]} 19. Bb3 {[%clk 0:01:49]}  Qd6 {[%clk 0:01:32]} 20. Nc4 {[%clk 0:01:33]}  Qe7 {[%clk 0:01:24]} 21. Qf2 {[%clk 0:01:30]}  Nd5 {[%clk 0:01:22]} 22. Bd2 {[%clk 0:01:25]}  b5 {[%clk 0:01:16]} 23. Ne5 {[%clk 0:01:20]}  Nf6 {[%clk 0:01:02]} 24. Be3 {[%clk 0:00:44]}  Nd5 {[%clk 0:00:58]} 25. Rac1 {[%clk 0:00:39]}  Nxe3 {[%clk 0:00:49]} 26. Qxe3 {[%clk 0:00:40]}  Nxe5 {[%clk 0:00:38]} 27. dxe5 {[%clk 0:00:41]}  a6 {[%clk 0:00:36]} 28. Bc2 {[%clk 0:00:33]}  Bd5 {[%clk 0:00:29]} 29. a3 {[%clk 0:00:31]}  Rac8 {[%clk 0:00:25]} 30. Bb1 {[%clk 0:00:30]}  Qh4 {[%clk 0:00:18]} 31. Qf2 {[%clk 0:00:19]}  Qg5 {[%clk 0:00:17]} 32. Rxc8 {[%clk 0:00:16]}  Rxc8 {[%clk 0:00:17]} 33. Re1 {[%clk 0:00:14]}  Rc1 {[%clk 0:00:13]} 34. h4 {[%clk 0:00:10]}  Rxe1+ {[%clk 0:00:08]} 35. Qxe1 {[%clk 0:00:11]}  Qf4 {[%clk 0:00:07]} 36. Bd3 {[%clk 0:00:08]}  Qd4+ {[%clk 0:00:07]} 37. Kh2 {[%clk 0:00:05]}  Qxd3 {[%clk 0:00:08]} 38. Qa5 {[%clk 0:00:04]}  Qc4 {[%clk 0:00:07]} 39. Qd8+ {[%clk 0:00:04]}  Kh7 {[%clk 0:00:07]} 40. Qe7 {[%clk 0:00:04]}  Qf4+ {[%clk 0:00:07]} 41. Kg1 {[%clk 0:00:04]}  Qe3+ {[%clk 0:00:06]} 42. Kh2 {[%clk 0:00:04]}  Qxe5+ {[%clk 0:00:06]} 43. Kg1 {[%clk 0:00:04]}  Qf6 {[%clk 0:00:06]} 44. Qc7 {[%clk 0:00:04]}  Qxh4 {[%clk 0:00:06]} 45. Qc5 {[%clk 0:00:03]}  Qe1+ {[%clk 0:00:06]} 46. Kh2 {[%clk 0:00:03]}  Qe5+ {[%clk 0:00:06]} 47. Kg1 {[%clk 0:00:03]}  Qxb2 {[%clk 0:00:06]} 48. Qf8 {[%clk 0:00:03]}  Qd4+ {[%clk 0:00:05]} 49. Kh2 {[%clk 0:00:03]}  a5 {[%clk 0:00:05]} 50. Qxf7 {[%clk 0:00:03]}  Qe5+ {[%clk 0:00:05]} 51. Kg1 {[%clk 0:00:03]}  b4 {[%clk 0:00:05]} 52. axb4 {[%clk 0:00:02]}  axb4 {[%clk 0:00:06]} 0-1